[Event "*** SCC Grand Prix: Titled Tuesday Blitz"]
[Site "Chess.com"]
[Date "2020.06.23"]
[Round "5"]
[White "LiverpooL174"]
[Black "Novoselski"]
[Result "1-0"]
[WhiteElo "2680"]
[BlackElo "2314"]
[TimeControl "180+1"]
[EndTime "10:54:34 PDT"]
[Termination "LiverpooL174 won on time"]

1. e4 {[%clk 0:03:00.9]} 1... e5 {[%clk 0:02:58.9]} 2. Nf3 {[%clk 0:03:01.1]}
2... Nc6 {[%clk 0:02:58.9]} 3. Bc4 {[%clk 0:03:01.8]} 3... Bc5 {[%clk
0:02:57.8]} 4. c3 {[%clk 0:03:01.9]} 4... Qe7 {[%clk 0:02:57.6]} 5. d4 {[%clk
0:03:02.8]} 5... exd4 {[%clk 0:02:56.4]} 6. O-O {[%clk 0:03:02]} 6... d3 {[%clk
0:02:50.1]} 7. e5 {[%clk 0:03:02.2]} 7... h6 {[%clk 0:02:32.4]} 8. Qxd3 {[%clk
0:03:01.3]} 8... a6 {[%clk 0:02:11.1]} 9. Re1 {[%clk 0:02:59.5]} 9... b5 {[%clk
0:02:06.8]} 10. Bd5 {[%clk 0:03:00.1]} 10... Bb7 {[%clk 0:02:06.8]} 11. b4
{[%clk 0:02:58.5]} 11... Bb6 {[%clk 0:02:05.6]} 12. Bf4 {[%clk 0:02:57.5]} 12...
Qd8 {[%clk 0:01:21.6]} 13. Nbd2 {[%clk 0:02:56.9]} 13... Nge7 {[%clk 0:01:18.6]}
14. Bxf7+ {[%clk 0:02:56.1]} 14... Kxf7 {[%clk 0:01:14.2]} 15. Ne4 {[%clk
0:02:57]} 15... Rf8 {[%clk 0:01:10.3]} 16. Nh4 {[%clk 0:02:48.6]} 16... Kg8
{[%clk 0:01:04.7]} 17. Bxh6 {[%clk 0:02:47.8]} 17... Qe8 {[%clk 0:01:01.1]} 18.
Nf6+ {[%clk 0:02:45.3]} 18... gxf6 {[%clk 0:00:54.8]} 19. Qg3+ {[%clk 0:02:46]}
19... Ng6 {[%clk 0:00:49.7]} 20. Nxg6 {[%clk 0:02:41.6]} 20... Rf7 {[%clk
0:00:49.9]} 21. Ne7+ {[%clk 0:02:35.8]} 21... Kh8 {[%clk 0:00:45.8]} 22. exf6
{[%clk 0:02:34.6]} 22... Nxe7 {[%clk 0:00:38]} 23. fxe7 {[%clk 0:02:33.8]} 23...
d6 {[%clk 0:00:28.8]} 24. Re2 {[%clk 0:02:30.4]} 24... Bc6 {[%clk 0:00:27.6]}
25. Rae1 {[%clk 0:02:28.6]} 25... Qg8 {[%clk 0:00:09.3]} 26. Qh3 {[%clk
0:02:25.5]} 26... Rh7 {[%clk 0:00:07.7]} 27. e8=Q {[%clk 0:02:23.5]} 27... Rxe8
{[%clk 0:00:06.1]} 28. Rxe8 {[%clk 0:02:19.9]} 28... Bxe8 {[%clk 0:00:07]} 29.
Qh4 {[%clk 0:02:07.8]} 1-0

[Event "*** SCC Grand Prix: Titled Tuesday Blitz"]
[Site "Chess.com"]
[Date "2020.06.23"]
[Round "5"]
[White "j2806"]
[Black "hectorfiori"]
[Result "0-1"]
[WhiteElo "2064"]
[BlackElo "2323"]
[TimeControl "180+1"]
[EndTime "10:54:44 PDT"]
[Termination "hectorfiori won by resignation"]

1. e4 {[%clk 0:02:22.9]} 1... c5 {[%clk 0:02:56.5]} 2. Nf3 {[%clk 0:02:22.4]}
2... e6 {[%clk 0:02:57]} 3. d4 {[%clk 0:02:21.4]} 3... cxd4 {[%clk 0:02:57.9]}
4. Nxd4 {[%clk 0:02:21.7]} 4... Nf6 {[%clk 0:02:58.5]} 5. Nc3 {[%clk 0:02:21.4]}
5... Bb4 {[%clk 0:02:59.1]} 6. Bd3 {[%clk 0:02:11.7]} 6... e5 {[%clk 0:02:58.9]}
7. Nf3 {[%clk 0:02:07.4]} 7... Nc6 {[%clk 0:02:58]} 8. Bd2 {[%clk 0:02:05.5]}
8... O-O {[%clk 0:02:54]} 9. O-O {[%clk 0:02:05]} 9... d6 {[%clk 0:02:49.2]} 10.
a3 {[%clk 0:02:04.4]} 10... Ba5 {[%clk 0:02:47.8]} 11. Nd5 {[%clk 0:01:56.4]}
11... Bxd2 {[%clk 0:02:45.3]} 12. Qxd2 {[%clk 0:01:56.4]} 12... Nxd5 {[%clk
0:02:45.8]} 13. exd5 {[%clk 0:01:56.1]} 13... Ne7 {[%clk 0:02:45.8]} 14. c4
{[%clk 0:01:55.7]} 14... f5 {[%clk 0:02:43.2]} 15. Bc2 {[%clk 0:01:51.2]} 15...
Ng6 {[%clk 0:02:43.1]} 16. b4 {[%clk 0:01:49.8]} 16... e4 {[%clk 0:02:35.7]} 17.
Nd4 {[%clk 0:01:48.7]} 17... Ne5 {[%clk 0:02:36.1]} 18. c5 {[%clk 0:01:43.9]}
18... Qf6 {[%clk 0:02:22.1]} 19. cxd6 {[%clk 0:01:34.4]} 19... Qxd6 {[%clk
0:02:20.4]} 20. Nb5 {[%clk 0:01:32.1]} 20... Qg6 {[%clk 0:02:16.5]} 21. Kh1
{[%clk 0:01:20.1]} 21... Bd7 {[%clk 0:02:14]} 22. Nc7 {[%clk 0:01:08.4]} 22...
Rad8 {[%clk 0:02:09.8]} 23. d6 {[%clk 0:01:00]} 23... Bc6 {[%clk 0:02:02.4]} 24.
Bb3+ {[%clk 0:00:57.9]} 24... Kh8 {[%clk 0:02:01.9]} 25. Ne6 {[%clk 0:00:57.2]}
25... e3 {[%clk 0:01:43.7]} 26. Nf4 {[%clk 0:00:48]} 26... exd2 {[%clk
0:01:31.5]} 27. Nxg6+ {[%clk 0:00:47.4]} 27... Nxg6 {[%clk 0:01:32.1]} 28. Rfd1
{[%clk 0:00:39.2]} 28... Rxd6 {[%clk 0:01:31.8]} 29. Ra2 {[%clk 0:00:39.4]}
29... Rfd8 {[%clk 0:01:31]} 30. Kg1 {[%clk 0:00:39.1]} 30... Nf4 {[%clk
0:01:29.5]} 0-1

[Event "*** SCC Grand Prix: Titled Tuesday Blitz"]
[Site "Chess.com"]
[Date "2020.06.23"]
[Round "5"]
[White "Makswolf200817"]
[Black "francyIM"]
[Result "1-0"]
[WhiteElo "2419"]
[BlackElo "2575"]
[TimeControl "180+1"]
[EndTime "10:54:48 PDT"]
[Termination "Makswolf200817 won by resignation"]

1. Nf3 {[%clk 0:03:00.9]} 1... Nf6 {[%clk 0:02:57.9]} 2. c4 {[%clk 0:03:00.1]}
2... e6 {[%clk 0:02:56]} 3. e3 {[%clk 0:02:59.3]} 3... d5 {[%clk 0:02:54.5]} 4.
Nc3 {[%clk 0:02:59.4]} 4... c5 {[%clk 0:02:52.1]} 5. cxd5 {[%clk 0:02:59.2]}
5... exd5 {[%clk 0:02:50.6]} 6. d4 {[%clk 0:02:58.4]} 6... Nc6 {[%clk
0:02:51.5]} 7. Be2 {[%clk 0:02:57.5]} 7... a6 {[%clk 0:02:48.4]} 8. O-O {[%clk
0:02:56.8]} 8... h6 {[%clk 0:02:45.5]} 9. b3 {[%clk 0:02:56.1]} 9... Be6 {[%clk
0:02:42.9]} 10. Bb2 {[%clk 0:02:55.3]} 10... Rc8 {[%clk 0:02:40.6]} 11. Rc1
{[%clk 0:02:54.7]} 11... cxd4 {[%clk 0:02:37.4]} 12. Nxd4 {[%clk 0:02:54.5]}
12... Nxd4 {[%clk 0:02:36.9]} 13. Qxd4 {[%clk 0:02:54.5]} 13... Bc5 {[%clk
0:02:36.8]} 14. Qh4 {[%clk 0:02:48.7]} 14... O-O {[%clk 0:02:36.5]} 15. Na4
{[%clk 0:02:42.7]} 15... Be7 {[%clk 0:02:34.8]} 16. Qd4 {[%clk 0:02:43.2]} 16...
Qd6 {[%clk 0:02:29.2]} 17. a3 {[%clk 0:02:33.2]} 17... Rfd8 {[%clk 0:02:25.4]}
18. b4 {[%clk 0:02:32.3]} 18... Ne8 {[%clk 0:02:20.9]} 19. Nc5 {[%clk
0:02:25.2]} 19... Rc7 {[%clk 0:02:16]} 20. Qd2 {[%clk 0:02:14.2]} 20... a5
{[%clk 0:02:14.7]} 21. f4 {[%clk 0:02:09.1]} 21... Bf6 {[%clk 0:02:07]} 22. f5
{[%clk 0:02:05.1]} 22... Bc8 {[%clk 0:02:05.7]} 23. Bd4 {[%clk 0:01:48.8]} 23...
Bxd4 {[%clk 0:02:03.5]} 24. exd4 {[%clk 0:01:46.4]} 24... axb4 {[%clk
0:02:03.2]} 25. axb4 {[%clk 0:01:43.9]} 25... Nf6 {[%clk 0:02:02]} 26. Bd3
{[%clk 0:01:35.1]} 26... b6 {[%clk 0:01:59.9]} 27. Nb3 {[%clk 0:01:34.8]} 27...
Rxc1 {[%clk 0:01:51.6]} 28. Rxc1 {[%clk 0:01:35.7]} 28... Bd7 {[%clk 0:01:49.8]}
29. Ra1 {[%clk 0:01:33.6]} 29... Kh7 {[%clk 0:01:47.3]} 30. Nc1 {[%clk
0:01:27.3]} 30... Re8 {[%clk 0:01:46.4]} 31. Ne2 {[%clk 0:01:17.6]} 31... Ne4
{[%clk 0:01:29.7]} 32. Bxe4 {[%clk 0:01:17.5]} 32... dxe4 {[%clk 0:01:30.6]} 33.
Rf1 {[%clk 0:01:14.4]} 33... Bb5 {[%clk 0:01:29]} 34. f6 {[%clk 0:01:11.7]}
34... Bxe2 {[%clk 0:01:25.8]} 35. Qxe2 {[%clk 0:01:11.9]} 35... Qxd4+ {[%clk
0:01:26]} 36. Kh1 {[%clk 0:01:12.4]} 36... g6 {[%clk 0:01:24.8]} 37. Qa2 {[%clk
0:01:11.7]} 37... Re6 {[%clk 0:01:24.2]} 38. Qxe6 {[%clk 0:01:09.1]} 1-0

[Event "*** SCC Grand Prix: Titled Tuesday Blitz"]
[Site "Chess.com"]
[Date "2020.06.23"]
[Round "5"]
[White "renehp"]
[Black "Lupul_Cenusiu"]
[Result "0-1"]
[WhiteElo "2398"]
[BlackElo "2563"]
[TimeControl "180+1"]
[EndTime "10:54:56 PDT"]
[Termination "Lupul_Cenusiu won by resignation"]

1. e4 {[%clk 0:03:00]} 1... c5 {[%clk 0:02:59.1]} 2. Nf3 {[%clk 0:02:59.6]} 2...
e6 {[%clk 0:02:56.1]} 3. d4 {[%clk 0:02:59.5]} 3... cxd4 {[%clk 0:02:55.8]} 4.
Nxd4 {[%clk 0:03:00.4]} 4... a6 {[%clk 0:02:56.2]} 5. Bd3 {[%clk 0:03:00.2]}
5... d6 {[%clk 0:02:55.6]} 6. c4 {[%clk 0:02:59.2]} 6... Nf6 {[%clk 0:02:55.5]}
7. Nc3 {[%clk 0:02:58.9]} 7... Be7 {[%clk 0:02:52.2]} 8. O-O {[%clk 0:02:58.7]}
8... h5 {[%clk 0:02:51.6]} 9. h3 {[%clk 0:02:52.6]} 9... b6 {[%clk 0:02:48.9]}
10. f4 {[%clk 0:02:51.4]} 10... Bb7 {[%clk 0:02:47.7]} 11. f5 {[%clk 0:02:51.2]}
11... e5 {[%clk 0:02:45.9]} 12. Nc2 {[%clk 0:02:51.2]} 12... Nbd7 {[%clk
0:02:44.6]} 13. Bg5 {[%clk 0:02:48.7]} 13... b5 {[%clk 0:02:20]} 14. Bxf6 {[%clk
0:02:45.4]} 14... Nxf6 {[%clk 0:02:18.7]} 15. cxb5 {[%clk 0:02:43.4]} 15... axb5
{[%clk 0:02:13.8]} 16. Bxb5+ {[%clk 0:02:43.1]} 16... Kf8 {[%clk 0:02:13.9]} 17.
Bd3 {[%clk 0:02:41.7]} 17... d5 {[%clk 0:02:11.1]} 18. exd5 {[%clk 0:02:38.3]}
18... Nxd5 {[%clk 0:02:09.8]} 19. Nxd5 {[%clk 0:02:37.5]} 19... Qxd5 {[%clk
0:02:08.2]} 20. Qe2 {[%clk 0:02:36.1]} 20... e4 {[%clk 0:01:55.2]} 21. Bc4
{[%clk 0:02:35]} 21... Qe5 {[%clk 0:01:53.8]} 22. Ne3 {[%clk 0:02:16.5]} 22...
Bd6 {[%clk 0:01:47.8]} 23. Rfd1 {[%clk 0:02:15]} 23... Qh2+ {[%clk 0:01:40.8]}
24. Kf1 {[%clk 0:02:14.2]} 24... Bc5 {[%clk 0:01:24]} 25. b4 {[%clk 0:01:45.3]}
25... Qf4+ {[%clk 0:01:17.8]} 26. Qf2 {[%clk 0:01:22.3]} 26... Bxe3 {[%clk
0:01:17]} 27. Qxf4 {[%clk 0:01:21.4]} 27... Bxf4 {[%clk 0:01:16.9]} 28. Rd7
{[%clk 0:01:22.3]} 28... Bc6 {[%clk 0:01:15.3]} 29. Rxf7+ {[%clk 0:01:21.4]}
29... Ke8 {[%clk 0:01:15.3]} 30. Rxg7 {[%clk 0:01:10.9]} 30... Be5 {[%clk
0:01:10.6]} 31. Rc7 {[%clk 0:00:57.9]} 31... Bxc7 {[%clk 0:01:08.6]} 0-1

[Event "*** SCC Grand Prix: Titled Tuesday Blitz"]
[Site "Chess.com"]
[Date "2020.06.23"]
[Round "5"]
[White "PavelChernomordik"]
[Black "JoachimMouhamad"]
[Result "1-0"]
[WhiteElo "2314"]
[BlackElo "2448"]
[TimeControl "180+1"]
[EndTime "10:55:01 PDT"]
[Termination "PavelChernomordik won by resignation"]

1. e4 {[%clk 0:03:00.9]} 1... e5 {[%clk 0:02:59.4]} 2. Nf3 {[%clk 0:03:00]} 2...
Nc6 {[%clk 0:02:59.5]} 3. Bb5 {[%clk 0:02:59.9]} 3... a6 {[%clk 0:02:59.1]} 4.
Ba4 {[%clk 0:02:59]} 4... Nf6 {[%clk 0:02:59.3]} 5. Qe2 {[%clk 0:02:58.1]} 5...
b5 {[%clk 0:02:53.7]} 6. Bb3 {[%clk 0:02:56.1]} 6... Be7 {[%clk 0:02:47.7]} 7.
a4 {[%clk 0:02:55.3]} 7... Rb8 {[%clk 0:02:39.1]} 8. axb5 {[%clk 0:02:54.2]}
8... axb5 {[%clk 0:02:40]} 9. Nc3 {[%clk 0:02:53.9]} 9... b4 {[%clk 0:02:35.8]}
10. Nd5 {[%clk 0:02:53.6]} 10... O-O {[%clk 0:02:26.6]} 11. Nxe7+ {[%clk
0:02:50.9]} 11... Qxe7 {[%clk 0:02:25.8]} 12. d3 {[%clk 0:02:50.9]} 12... d6
{[%clk 0:02:07.5]} 13. h3 {[%clk 0:02:50.1]} 13... Kh8 {[%clk 0:02:04.1]} 14.
O-O {[%clk 0:02:48.8]} 14... Be6 {[%clk 0:01:49]} 15. Ba4 {[%clk 0:02:47.2]}
15... Nd8 {[%clk 0:01:36]} 16. Ng5 {[%clk 0:02:42.3]} 16... h6 {[%clk
0:01:27.7]} 17. Nxe6 {[%clk 0:02:36.3]} 17... Nxe6 {[%clk 0:01:28.6]} 18. c3
{[%clk 0:02:35.5]} 18... c5 {[%clk 0:01:23.2]} 19. Bc6 {[%clk 0:02:24.8]} 19...
Nf4 {[%clk 0:01:04.1]} 20. Qf3 {[%clk 0:02:11.5]} 20... N6h5 {[%clk 0:00:44.3]}
21. g3 {[%clk 0:01:54.7]} 21... Nxh3+ {[%clk 0:00:11]} 22. Kh2 {[%clk
0:01:48.8]} 22... Nxf2 {[%clk 0:00:11.3]} 23. Rxf2 {[%clk 0:01:43.7]} 23... Nf6
{[%clk 0:00:11.3]} 24. Bxh6 {[%clk 0:01:40.3]} 24... gxh6 {[%clk 0:00:11]} 25.
Qxf6+ {[%clk 0:01:39.4]} 25... Qxf6 {[%clk 0:00:11.9]} 26. Rxf6 {[%clk
0:01:39.1]} 26... bxc3 {[%clk 0:00:12.8]} 27. bxc3 {[%clk 0:01:38.3]} 27... Rb2+
{[%clk 0:00:12.7]} 28. Kh3 {[%clk 0:01:38.2]} 28... Rd8 {[%clk 0:00:09.9]} 29.
Rxf7 {[%clk 0:01:36.3]} 1-0

[Event "*** SCC Grand Prix: Titled Tuesday Blitz"]
[Site "Chess.com"]
[Date "2020.06.23"]
[Round "5"]
[White "FMalexhdez"]
[Black "dolynachess"]
[Result "0-1"]
[WhiteElo "2117"]
[BlackElo "2444"]
[TimeControl "180+1"]
[EndTime "10:55:01 PDT"]
[Termination "dolynachess won by resignation"]

1. d4 {[%clk 0:01:45.8]} 1... Nf6 {[%clk 0:02:57]} 2. Nf3 {[%clk 0:01:45.8]}
2... c5 {[%clk 0:02:54.3]} 3. c4 {[%clk 0:01:43.8]} 3... cxd4 {[%clk 0:02:52.7]}
4. Nxd4 {[%clk 0:01:42.9]} 4... g6 {[%clk 0:02:52.6]} 5. Nc3 {[%clk 0:01:43]}
5... Bg7 {[%clk 0:02:52.9]} 6. g3 {[%clk 0:01:43]} 6... O-O {[%clk 0:02:53]} 7.
Bg2 {[%clk 0:01:43.1]} 7... Nc6 {[%clk 0:02:53.9]} 8. Nc2 {[%clk 0:01:39.7]}
8... d6 {[%clk 0:02:53.3]} 9. O-O {[%clk 0:01:39.2]} 9... a6 {[%clk 0:02:45.8]}
10. Ne3 {[%clk 0:01:38.6]} 10... Rb8 {[%clk 0:02:45]} 11. Ncd5 {[%clk
0:01:33.7]} 11... Nxd5 {[%clk 0:02:40.9]} 12. Nxd5 {[%clk 0:01:31.5]} 12... b5
{[%clk 0:02:40.7]} 13. cxb5 {[%clk 0:01:24.9]} 13... axb5 {[%clk 0:02:41.6]} 14.
Bg5 {[%clk 0:01:02.4]} 14... Bd7 {[%clk 0:02:21]} 15. Qd2 {[%clk 0:00:54.3]}
15... Re8 {[%clk 0:02:14.3]} 16. Rac1 {[%clk 0:00:53.2]} 16... Ne5 {[%clk
0:01:59.6]} 17. Bh6 {[%clk 0:00:52]} 17... Nc4 {[%clk 0:01:57.3]} 18. Qg5 {[%clk
0:00:43.6]} 18... Nxb2 {[%clk 0:01:36.7]} 19. Bxg7 {[%clk 0:00:39.2]} 19... Kxg7
{[%clk 0:01:37.6]} 20. Nc7 {[%clk 0:00:35.4]} 20... Rf8 {[%clk 0:01:31]} 21. Nd5
{[%clk 0:00:27.4]} 21... Nc4 {[%clk 0:01:30.5]} 22. Nxe7 {[%clk 0:00:25.4]}
22... f6 {[%clk 0:01:23.4]} 0-1

[Event "*** SCC Grand Prix: Titled Tuesday Blitz"]
[Site "Chess.com"]
[Date "2020.06.23"]
[Round "5"]
[White "lilleper1"]
[Black "Godzillator"]
[Result "1-0"]
[WhiteElo "2694"]
[BlackElo "2395"]
[TimeControl "180+1"]
[EndTime "10:55:04 PDT"]
[Termination "lilleper1 won by resignation"]

1. d4 {[%clk 0:03:00.9]} 1... d5 {[%clk 0:02:59.8]} 2. c4 {[%clk 0:03:01.1]}
2... c6 {[%clk 0:03:00]} 3. Nf3 {[%clk 0:03:00.7]} 3... Nf6 {[%clk 0:03:00.3]}
4. Nbd2 {[%clk 0:03:01.1]} 4... h6 {[%clk 0:02:58]} 5. g3 {[%clk 0:02:50.2]}
5... Bf5 {[%clk 0:02:57.2]} 6. Qb3 {[%clk 0:02:48.8]} 6... b6 {[%clk 0:02:50.1]}
7. Bg2 {[%clk 0:02:47.4]} 7... e6 {[%clk 0:02:50.3]} 8. O-O {[%clk 0:02:46.8]}
8... Nbd7 {[%clk 0:02:47.8]} 9. Ne5 {[%clk 0:02:39.9]} 9... Nxe5 {[%clk
0:02:44.2]} 10. dxe5 {[%clk 0:02:39.7]} 10... Nd7 {[%clk 0:02:44.3]} 11. cxd5
{[%clk 0:02:36.6]} 11... cxd5 {[%clk 0:02:43.2]} 12. e4 {[%clk 0:02:31.4]} 12...
dxe4 {[%clk 0:02:42.6]} 13. Nxe4 {[%clk 0:02:31.4]} 13... Rc8 {[%clk 0:02:35.9]}
14. Rd1 {[%clk 0:02:26.2]} 14... Be7 {[%clk 0:02:33.8]} 15. Qa4 {[%clk
0:02:19.3]} 15... Qc7 {[%clk 0:02:29.4]} 16. Be3 {[%clk 0:02:08.9]} 16... Bc5
{[%clk 0:01:53.4]} 17. Bxc5 {[%clk 0:02:01.7]} 17... bxc5 {[%clk 0:01:52.8]} 18.
Nd6+ {[%clk 0:02:00.8]} 18... Ke7 {[%clk 0:01:51.5]} 19. Nxc8+ {[%clk
0:01:58.2]} 19... Rxc8 {[%clk 0:01:52.1]} 20. f4 {[%clk 0:01:40]} 20... Nb6
{[%clk 0:01:48.1]} 21. Qb5 {[%clk 0:01:35.1]} 21... Kf8 {[%clk 0:01:46.9]} 22.
Rd2 {[%clk 0:01:33.9]} 22... Kg8 {[%clk 0:01:46.2]} 23. Rc1 {[%clk 0:01:30.8]}
23... c4 {[%clk 0:01:40.8]} 24. Rd6 {[%clk 0:01:29.5]} 24... g5 {[%clk
0:01:30.8]} 25. fxg5 {[%clk 0:01:23.7]} 25... hxg5 {[%clk 0:01:30.3]} 26. Rc6
{[%clk 0:01:03.9]} 26... Qd8 {[%clk 0:01:29]} 27. Rxc8 {[%clk 0:00:55.8]} 27...
Qxc8 {[%clk 0:01:29.2]} 28. Qc6 {[%clk 0:00:52.9]} 28... Qd8 {[%clk 0:01:28.2]}
29. Qd6 {[%clk 0:00:48.8]} 29... Qc8 {[%clk 0:01:21.5]} 30. Qe7 {[%clk
0:00:36.7]} 30... g4 {[%clk 0:01:20.2]} 31. Rd1 {[%clk 0:00:33.8]} 31... Qa6
{[%clk 0:01:18.6]} 32. Rd8+ {[%clk 0:00:31.3]} 32... Kh7 {[%clk 0:01:18.1]} 33.
Qh4+ {[%clk 0:00:31]} 33... Kg7 {[%clk 0:01:16.8]} 34. Qf6+ {[%clk 0:00:30.3]}
1-0

[Event "*** SCC Grand Prix: Titled Tuesday Blitz"]
[Site "Chess.com"]
[Date "2020.06.23"]
[Round "5"]
[White "Isajevsky_Anton"]
[Black "emperor87"]
[Result "1-0"]
[WhiteElo "2523"]
[BlackElo "2695"]
[TimeControl "180+1"]
[EndTime "10:55:08 PDT"]
[Termination "Isajevsky_Anton won by resignation"]

1. c4 {[%clk 0:02:59.1]} 1... e6 {[%clk 0:03:00.3]} 2. Nf3 {[%clk 0:02:58.2]}
2... Nf6 {[%clk 0:03:00.6]} 3. Nc3 {[%clk 0:02:57]} 3... g6 {[%clk 0:03:00.1]}
4. d4 {[%clk 0:02:53.9]} 4... Bg7 {[%clk 0:02:59.3]} 5. Bg5 {[%clk 0:02:45.6]}
5... h6 {[%clk 0:02:58.5]} 6. Bh4 {[%clk 0:02:45.6]} 6... g5 {[%clk 0:02:56.5]}
7. Bg3 {[%clk 0:02:45.6]} 7... d6 {[%clk 0:02:56.2]} 8. h3 {[%clk 0:02:41.3]}
8... Nc6 {[%clk 0:02:52.7]} 9. e3 {[%clk 0:02:41]} 9... Qe7 {[%clk 0:02:52.7]}
10. Be2 {[%clk 0:02:31.5]} 10... O-O {[%clk 0:02:51.9]} 11. d5 {[%clk
0:02:02.9]} 11... exd5 {[%clk 0:02:50.5]} 12. cxd5 {[%clk 0:02:01.9]} 12... Ne5
{[%clk 0:02:50]} 13. Nxe5 {[%clk 0:01:59.8]} 13... dxe5 {[%clk 0:02:50.2]} 14.
e4 {[%clk 0:01:59.2]} 14... Ne8 {[%clk 0:02:42.8]} 15. Bg4 {[%clk 0:01:53.2]}
15... f5 {[%clk 0:02:40.4]} 16. Bxf5 {[%clk 0:01:48.5]} 16... Bxf5 {[%clk
0:02:39.5]} 17. exf5 {[%clk 0:01:49.4]} 17... Nd6 {[%clk 0:02:36.4]} 18. Qb3
{[%clk 0:01:32.1]} 18... Rxf5 {[%clk 0:02:34.5]} 19. O-O-O {[%clk 0:01:23.6]}
19... a5 {[%clk 0:02:31.9]} 20. Rhe1 {[%clk 0:01:21.2]} 20... Qf7 {[%clk
0:02:29.3]} 21. Ne4 {[%clk 0:01:17]} 21... h5 {[%clk 0:02:27.5]} 22. f3 {[%clk
0:01:15.3]} 22... a4 {[%clk 0:02:20.3]} 23. Qb4 {[%clk 0:00:45.3]} 23... Bf8
{[%clk 0:02:14]} 24. Nxd6 {[%clk 0:00:44.3]} 24... cxd6 {[%clk 0:02:02]} 25. Kb1
{[%clk 0:00:42]} 25... h4 {[%clk 0:01:53.5]} 26. Bh2 {[%clk 0:00:40.5]} 26... a3
{[%clk 0:01:53.1]} 27. b3 {[%clk 0:00:33.7]} 27... e4 {[%clk 0:01:52]} 28. Qxe4
{[%clk 0:00:28.8]} 28... Bg7 {[%clk 0:01:43.8]} 29. Qe6 {[%clk 0:00:29]} 29...
Ra5 {[%clk 0:01:27.5]} 30. Bxd6 {[%clk 0:00:27.2]} 30... Bb2 {[%clk 0:01:24.6]}
31. Qc8+ {[%clk 0:00:22.6]} 1-0

[Event "*** SCC Grand Prix: Titled Tuesday Blitz"]
[Site "Chess.com"]
[Date "2020.06.23"]
[Round "5"]
[White "luizwas"]
[Black "Mr_Sinigami"]
[Result "0-1"]
[WhiteElo "1808"]
[BlackElo "2591"]
[TimeControl "180+1"]
[EndTime "10:55:10 PDT"]
[Termination "Mr_Sinigami won by checkmate"]

1. e4 {[%clk 0:03:00.9]} 1... c5 {[%clk 0:02:58.1]} 2. Nf3 {[%clk 0:03:01.1]}
2... e6 {[%clk 0:02:58.5]} 3. d4 {[%clk 0:03:01.5]} 3... cxd4 {[%clk 0:02:59]}
4. Nxd4 {[%clk 0:03:02.4]} 4... Nc6 {[%clk 0:02:58.8]} 5. Nc3 {[%clk 0:03:02.4]}
5... Qc7 {[%clk 0:02:52.2]} 6. a3 {[%clk 0:02:58.2]} 6... Nf6 {[%clk 0:02:51.2]}
7. Be3 {[%clk 0:02:55.7]} 7... a6 {[%clk 0:02:49.9]} 8. f3 {[%clk 0:02:55.6]}
8... b5 {[%clk 0:02:49.1]} 9. Qd2 {[%clk 0:02:55.5]} 9... Bb7 {[%clk 0:02:48.6]}
10. Be2 {[%clk 0:02:52.5]} 10... b4 {[%clk 0:02:44.1]} 11. axb4 {[%clk
0:02:50.8]} 11... Bxb4 {[%clk 0:02:44.9]} 12. Nxc6 {[%clk 0:02:50.2]} 12... dxc6
{[%clk 0:02:33.8]} 13. O-O {[%clk 0:02:47.1]} 13... O-O {[%clk 0:02:33.1]} 14.
Bg5 {[%clk 0:02:35.1]} 14... Nd7 {[%clk 0:02:32.4]} 15. Qf4 {[%clk 0:02:33.9]}
15... Ne5 {[%clk 0:02:13.4]} 16. Na2 {[%clk 0:02:19]} 16... Bd6 {[%clk 0:02:12]}
17. Qh4 {[%clk 0:02:15.1]} 17... Ng6 {[%clk 0:02:07.8]} 18. Qh3 {[%clk
0:02:13.8]} 18... Bf4 {[%clk 0:02:00.2]} 19. Bh4 {[%clk 0:02:02.2]} 19... Qb6+
{[%clk 0:01:41.1]} 20. Bf2 {[%clk 0:01:59.5]} 20... Qxb2 {[%clk 0:01:42]} 21.
Rfb1 {[%clk 0:01:49.8]} 21... Qf6 {[%clk 0:01:34.5]} 22. Rxb7 {[%clk 0:01:48]}
22... Qxa1+ {[%clk 0:01:33.4]} 23. Bf1 {[%clk 0:01:34.7]} 23... Qxa2 {[%clk
0:01:32.1]} 24. g3 {[%clk 0:01:34.6]} 24... Bd6 {[%clk 0:01:19.3]} 25. f4 {[%clk
0:01:34]} 25... Qxc2 {[%clk 0:01:14.2]} 26. f5 {[%clk 0:01:32.6]} 26... exf5
{[%clk 0:01:11.6]} 27. exf5 {[%clk 0:01:33.5]} 27... Ne5 {[%clk 0:01:11.6]} 28.
f6 {[%clk 0:01:32.5]} 28... Nf3+ {[%clk 0:00:58.6]} 29. Kg2 {[%clk 0:01:30.8]}
29... Bc5 {[%clk 0:00:58.2]} 30. Kxf3 {[%clk 0:01:01.3]} 30... Qxf2+ {[%clk
0:00:56.2]} 31. Kg4 {[%clk 0:01:01.9]} 31... Qxf6 {[%clk 0:00:56.1]} 32. Rb3
{[%clk 0:00:58.6]} 32... Qe6+ {[%clk 0:00:54.2]} 33. Kh4 {[%clk 0:00:57.5]}
33... Be7+ {[%clk 0:00:52.4]} 34. Kh5 {[%clk 0:00:55.3]} 34... Qg6# {[%clk
0:00:52.4]} 0-1

[Event "*** SCC Grand Prix: Titled Tuesday Blitz"]
[Site "Chess.com"]
[Date "2020.06.23"]
[Round "5"]
[White "rynos0411"]
[Black "IwkooO"]
[Result "0-1"]
[WhiteElo "2371"]
[BlackElo "2520"]
[TimeControl "180+1"]
[EndTime "10:55:13 PDT"]
[Termination "IwkooO won by resignation"]

1. e4 {[%clk 0:03:00.9]} 1... c5 {[%clk 0:02:59.8]} 2. Nf3 {[%clk 0:03:00.3]}
2... e6 {[%clk 0:02:58.1]} 3. d4 {[%clk 0:02:59.8]} 3... cxd4 {[%clk 0:02:59]}
4. Nxd4 {[%clk 0:02:59.9]} 4... Nc6 {[%clk 0:02:57.3]} 5. Nc3 {[%clk 0:02:59.9]}
5... a6 {[%clk 0:02:55.2]} 6. g3 {[%clk 0:02:59.9]} 6... d6 {[%clk 0:02:50.2]}
7. Bg2 {[%clk 0:03:00.1]} 7... Bd7 {[%clk 0:02:50.3]} 8. O-O {[%clk 0:03:00.3]}
8... Nf6 {[%clk 0:02:49.8]} 9. Be3 {[%clk 0:03:00.8]} 9... Be7 {[%clk
0:02:49.9]} 10. f4 {[%clk 0:03:00.8]} 10... O-O {[%clk 0:02:49.1]} 11. Nb3
{[%clk 0:02:59.2]} 11... Qc7 {[%clk 0:02:45.6]} 12. g4 {[%clk 0:02:58.4]} 12...
b5 {[%clk 0:02:17.9]} 13. g5 {[%clk 0:02:56.7]} 13... Ne8 {[%clk 0:02:17.7]} 14.
Qd2 {[%clk 0:02:52.8]} 14... Rb8 {[%clk 0:02:01.8]} 15. Rac1 {[%clk 0:02:46.3]}
15... b4 {[%clk 0:01:48.8]} 16. Ne2 {[%clk 0:02:38.1]} 16... Na5 {[%clk
0:01:48.1]} 17. f5 {[%clk 0:02:31.6]} 17... Nc4 {[%clk 0:01:40.8]} 18. Qd3
{[%clk 0:02:11.3]} 18... Nxb2 {[%clk 0:01:22.3]} 19. Qd4 {[%clk 0:02:05.8]}
19... Nc4 {[%clk 0:01:20.8]} 20. f6 {[%clk 0:01:52.7]} 20... Bd8 {[%clk
0:01:13]} 21. Bf2 {[%clk 0:01:49.7]} 21... gxf6 {[%clk 0:00:59.6]} 22. gxf6
{[%clk 0:01:49.6]} 22... Bxf6 {[%clk 0:00:59]} 23. Qd3 {[%clk 0:01:49.7]} 23...
Bg7 {[%clk 0:00:52.2]} 24. Ng3 {[%clk 0:01:44.6]} 24... Nf6 {[%clk 0:00:49.3]}
25. Bd4 {[%clk 0:01:35.6]} 25... e5 {[%clk 0:00:48.6]} 26. Ba1 {[%clk
0:01:36.1]} 26... Rfc8 {[%clk 0:00:27.3]} 27. Qe2 {[%clk 0:01:21.3]} 27... Qb6+
{[%clk 0:00:27]} 28. Kh1 {[%clk 0:01:21]} 28... Qe3 {[%clk 0:00:27.6]} 29. Qd1
{[%clk 0:01:15.6]} 29... Bg4 {[%clk 0:00:23.5]} 30. Qf3 {[%clk 0:01:07.7]} 30...
Bxf3 {[%clk 0:00:23.1]} 0-1